bitfinex-derivatives/quotes_BTCF0:USTF0_20250830
["timestamp","ask_amount","ask_price","bid_price","bid_amount"]
[1756560461390,1.39119839,108500.0,108490.0,0.3487435]
[1756560462097,0.09282,108490.0,108480.0,0.7645235]
[1756560462286,0.50813458,108490.0,108480.0,0.7645235]
[1756560462784,0.50813458,108490.0,108480.0,0.7100135]
[1756560462988,0.50813458,108490.0,108480.0,0.7645235]
[1756560463390,1.36221458,108490.0,108480.0,0.7645235]
[1756560463686,1.36221458,108490.0,108480.0,0.7655235]
[1756560463885,0.50813458,108490.0,108480.0,0.7655235]
[1756560464085,1.04960108,108490.0,108480.0,1.078057]
[1756560465002,1.04960108,108490.0,108480.0,1.079057]
[1756560466107,1.36213458,108490.0,108480.0,1.079057]
[1756560467004,1.36213458,108490.0,108480.0,0.45399]
[1756560467203,1.36213458,108490.0,108480.0,1.079057]
[1756560468402,1.36213458,108490.0,108480.0,0.7665235]
[1756560468597,1.36213458,108490.0,108480.0,1.079057]
[1756560469405,1.36213458,108490.0,108480.0,0.7665235]
[1756560472403,1.27923955,108490.0,108480.0,0.7665235]
[1756560473507,1.27923955,108490.0,108480.0,0.45399]
[1756560473707,1.27923955,108490.0,108480.0,0.7665235]
[1756560474510,1.27923955,108490.0,108480.0,0.45399]
[1756560474804,1.27923955,108490.0,108480.0,0.7120135]
[1756560475010,1.27923955,108490.0,108480.0,0.7665235]
[1756560475310,1.27923955,108490.0,108480.0,0.45399]
[1756560475509,1.27923955,108490.0,108480.0,0.7665235]
[1756560476307,1.27923955,108490.0,108480.0,0.09319]
[1756560476509,1.80641043,108490.0,108480.0,0.002]
[1756560476805,1.74003955,108490.0,108480.0,0.002]
[1756560477007,2.07293458,108490.0,108480.0,0.002]
[1756560479215,1.82293458,108490.0,108480.0,0.002]
[1756560479911,0.09282,108480.0,108470.0,0.7645235]
[1756560480114,0.42523955,108480.0,108470.0,0.7645235]
[1756560481316,0.42523955,108480.0,108470.0,0.7675235]
[1756560482512,0.42523955,108480.0,108470.0,0.7695235]
[1756560485028,0.42523955,108480.0,108470.0,0.45699]
[1756560485318,0.42523955,108480.0,108470.0,0.7695235]
[1756560487423,0.49155134,108480.0,108470.0,0.7675235]
[1756560488016,0.42523955,108480.0,108470.0,0.7675235]
[1756560488216,0.42523955,108480.0,108470.0,0.7665235]
[1756560489126,0.11270605,108480.0,108470.0,0.7665235]
[1756560489324,0.42523955,108480.0,108470.0,0.7665235]
[1756560492727,0.4053535,108480.0,108470.0,0.7665235]
[1756560494630,0.4053535,108480.0,108470.0,0.45399]
[1756560494933,0.4053535,108480.0,108470.0,0.7665235]
[1756560496828,0.47162532,108480.0,108470.0,0.7665235]
[1756560497223,0.49157845,108480.0,108470.0,0.7665235]
[1756560497835,0.47162532,108480.0,108470.0,0.7665235]
[1756560498029,0.4915778,108480.0,108470.0,0.45399]
[1756560498228,0.4915778,108480.0,108470.0,0.7665235]
[1756560499436,0.4915778,108480.0,108470.0,0.4057235]
[1756560499837,0.4915778,108480.0,108470.0,0.09319]
[1756560500028,0.8041113,108480.0,108470.0,0.4057235]
[1756560500425,0.4915778,108480.0,108470.0,0.4057235]
[1756560501339,0.42530598,108480.0,108470.0,0.4057235]
[1756560501532,0.42530598,108480.0,108470.0,0.09319]
[1756560501835,0.42530598,108480.0,108470.0,0.4057235]
[1756560502432,0.50814576,108480.0,108470.0,0.4057235]
[1756560502737,0.50814576,108480.0,108470.0,0.7665235]
[1756560505732,0.82067926,108480.0,108470.0,0.45399]
[1756560505941,1.18147926,108480.0,108470.0,0.4057235]
[1756560507342,1.18147926,108480.0,108470.0,0.09319]
[1756560507540,1.28147926,108480.0,108470.0,0.09319]
[1756560511438,1.28147926,108480.0,108470.0,0.01845508]
[1756560511641,1.19863948,108480.0,108470.0,0.01845508]
[1756560512240,2.13363109,108480.0,108470.0,0.01845508]
[1756560512640,2.4797128,108480.0,108470.0,0.01845508]
[1756560512841,2.4236728,108480.0,108450.0,0.67329351]
[1756560513043,1.8611393,108480.0,108470.0,0.03487]
[1756560513540,1.9128093,108480.0,108470.0,0.03487]
[1756560514045,1.3732628,108480.0,108470.0,0.03487]
[1756560514243,0.7481958,108480.0,108470.0,0.08755]
[1756560514446,2.2252628,108480.0,108470.0,0.03487]
[1756560515640,2.2252628,108480.0,108470.0,0.03587]
[1756560516044,2.2252628,108480.0,108470.0,0.001]
[1756560518248,0.089,108470.0,108460.0,0.08755]
[1756560518448,0.10895248,108470.0,108460.0,0.08755]
[1756560518644,0.42148598,108470.0,108460.0,0.4000835]
[1756560518850,1.33960627,108470.0,108460.0,0.4000835]
[1756560519245,1.33960627,108470.0,108460.0,0.7608835]
[1756560519645,0.48776627,108470.0,108460.0,0.4000835]
[1756560519852,1.33956627,108470.0,108460.0,0.4000835]
[1756560521054,1.31961379,108470.0,108460.0,0.4000835]
[1756560522353,0.46781379,108470.0,108460.0,0.4000835]
[1756560522558,1.31957379,108470.0,108460.0,0.4000835]
[1756560523359,1.31957379,108470.0,108460.0,0.7608835]
[1756560524764,1.2532935,108470.0,108460.0,0.7082035]
[1756560525062,1.27297037,108470.0,108460.0,0.3474035]
[1756560525968,1.2532935,108470.0,108460.0,0.3474035]
[1756560526663,1.2532935,108470.0,108460.0,0.4000835]
[1756560527464,1.2532935,108470.0,108460.0,0.3474035]
[1756560527962,1.27297095,108470.0,108460.0,0.3474035]
[1756560528365,1.33925124,108470.0,108460.0,0.3474035]
[1756560528751,1.33925124,108470.0,108460.0,0.03487]
[1756560528952,1.33925124,108470.0,108460.0,0.3474035]
[1756560531161,1.02671774,108470.0,108460.0,0.4000835]
[1756560531361,1.33925124,108470.0,108460.0,0.4000835]
[1756560531560,1.33925124,108470.0,108460.0,0.3474035]
[1756560534464,1.27297095,108470.0,108460.0,0.3474035]
[1756560536759,0.42121095,108470.0,108460.0,0.7082035]
[1756560536955,1.27241095,108470.0,108460.0,0.7608835]
[1756560537761,1.33873708,108470.0,108460.0,0.7608835]
[1756560540468,1.33865708,108470.0,108460.0,0.7608835]
[1756560542071,0.17500358,108470.0,108460.0,1.34178888]
[1756560544773,0.17500358,108470.0,108460.0,2.19270888]
[1756560549875,0.17828358,108470.0,108460.0,2.19270888]
[1756560551977,0.12333358,108470.0,108460.0,1.94270888]
[1756560552477,0.11195745,108470.0,108460.0,1.94270888]
[1756560553579,0.11195745,108470.0,108460.0,1.09178888]
[1756560553877,0.11195745,108470.0,108460.0,1.94238888]
[1756560555474,0.03616,108470.0,108460.0,1.88970888]
[1756560556081,0.03616,108470.0,108460.0,1.94013888]
[1756560557985,0.1024647,108470.0,108460.0,1.57933888]
[1756560558185,0.1024647,108470.0,108460.0,1.94013888]
[1756560559680,0.1024647,108470.0,108460.0,1.57933888]
[1756560559877,0.1024647,108470.0,108460.0,1.94013888]
[1756560561885,0.0663047,108470.0,108460.0,2.19013888]
[1756560562091,0.0663047,108470.0,108460.0,1.94013888]
[1756560562291,0.0663047,108480.0,108460.0,1.94013888]
[1756560562490,1.30075511,108490.0,108460.0,1.62760538]
[1756560562491,0.0663047,108470.0,108460.0,1.62760538]
[1756560562683,0.0663047,108480.0,108460.0,1.93797538]
[1756560562883,0.0663047,108480.0,108470.0,0.44789]
[1756560563689,0.0663047,108480.0,108470.0,1.072957]
[1756560566092,0.0673047,108480.0,108470.0,1.072957]
[1756560567391,0.08702605,108480.0,108470.0,1.072957]
[1756560569493,0.02072135,108480.0,108470.0,1.072957]
[1756560569994,0.01411942,108480.0,108470.0,1.322957]
[1756560570193,0.46697201,108500.0,108470.0,1.272527]
[1756560570394,0.50313201,108500.0,108490.0,0.3996235]
[1756560570891,0.50313201,108500.0,108490.0,0.7604235]
[1756560573091,0.50513201,108500.0,108490.0,0.7604235]
[1756560573595,0.50613201,108500.0,108490.0,0.7604235]
[1756560574197,0.19359851,108500.0,108490.0,0.7604235]
[1756560574496,0.13864851,108500.0,108490.0,0.7604235]
[1756560574699,0.07234381,108500.0,108490.0,0.7604235]
[1756560576597,0.12748381,108500.0,108490.0,0.7604235]
[1756560576798,0.12548381,108500.0,108490.0,0.7604235]
[1756560577098,0.12448381,108500.0,108490.0,0.7604235]
[1756560577798,0.12548381,108500.0,108490.0,0.7604235]
[1756560579198,0.19178851,108500.0,108490.0,0.7604235]
[1756560580500,0.50432201,108500.0,108490.0,0.7604235]
[1756560580901,0.19178851,108500.0,108490.0,0.7604235]
[1756560581201,0.50432201,108500.0,108490.0,0.7604235]
[1756560582798,0.19178851,108500.0,108490.0,0.7604235]
[1756560583104,0.03418381,108500.0,108490.0,1.322957]
[1756560587605,0.03318381,108500.0,108490.0,1.323957]
[1756560587807,0.0663047,108510.0,108490.0,1.274527]
[1756560588107,0.1009547,108510.0,108500.0,1.891067]
[1756560589404,0.1009547,108510.0,108500.0,1.890947]
[1756560591309,0.14753678,108510.0,108500.0,1.890947]
[1756560591501,0.14853678,108510.0,108500.0,1.890947]
[1756560592109,0.14853678,108510.0,108500.0,1.041867]
[1756560592310,0.08223208,108510.0,108500.0,1.890827]
[1756560601118,0.14853678,108510.0,108500.0,1.890827]
[1756560601310,0.14853678,108510.0,108500.0,1.26576]
[1756560601511,0.14853678,108510.0,108500.0,1.890827]
[1756560607816,0.11388678,108510.0,108500.0,1.890827]
[1756560610327,0.11388678,108510.0,108500.0,2.4533605]
[1756560611129,0.02620678,108510.0,108500.0,2.4533605]
[1756560611320,0.08291161,108530.0,108500.0,2.3973605]
[1756560611529,0.17054161,108530.0,108520.0,0.985867]
[1756560611728,0.17054161,108530.0,108520.0,0.3608]
[1756560611930,0.17054161,108530.0,108520.0,0.985867]
[1756560612230,0.21554393,108530.0,108520.0,0.985867]
[1756560612431,0.13263232,108530.0,108520.0,0.985867]
[1756560613032,0.07952232,108530.0,108520.0,0.985867]
[1756560613232,0.13263232,108530.0,108520.0,1.833947]
[1756560613831,0.13463232,108530.0,108520.0,1.833947]
[1756560615134,0.13563232,108530.0,108520.0,1.833947]
[1756560615627,0.08252232,108530.0,108520.0,1.833947]
[1756560617126,0.08252232,108530.0,108520.0,0.985867]
[1756560617323,0.08252232,108530.0,108520.0,1.833827]
[1756560619631,0.08252232,108530.0,108520.0,0.985867]
[1756560619834,0.13563232,108530.0,108520.0,0.3608]
[1756560620030,0.13563232,108530.0,108520.0,1.833667]
[1756560620632,0.44816582,108530.0,108520.0,1.833667]
[1756560621236,0.51439057,108530.0,108520.0,1.833667]
[1756560621437,0.20185707,108530.0,108520.0,1.833667]
[1756560623038,0.14874707,108530.0,108520.0,1.833667]
[1756560623334,0.09765491,108530.0,108520.0,1.833667]
[1756560624136,0.04800232,108530.0,108520.0,1.833667]
[1756560625130,0.11422707,108530.0,108520.0,1.833667]
[1756560625335,0.04800232,108530.0,108520.0,2.3962005]
[1756560625537,0.097646,108530.0,108520.0,2.3962005]
[1756560627739,0.04800232,108530.0,108520.0,2.3962005]
[1756560628042,0.04800232,108530.0,108520.0,2.3958805]
[1756560628638,0.04800232,108530.0,108520.0,1.5484005]
[1756560628832,0.04800232,108530.0,108520.0,2.3958405]
[1756560630941,0.04800232,108530.0,108520.0,1.45824]
[1756560631135,0.04800232,108530.0,108520.0,2.3958405]
[1756560631330,0.003,108530.0,108520.0,2.3958405]
[1756560632541,0.003,108530.0,108520.0,2.4879813]
[1756560636842,0.04964368,108540.0,108520.0,2.4879813]
[1756560637153,0.06622475,108550.0,108520.0,2.4879813]
[1756560637154,0.04964368,108550.0,108530.0,1.3905328]
[1756560637355,0.04964368,108550.0,108540.0,2.1454805]
[1756560639145,0.04964368,108550.0,108540.0,2.2376043]
[1756560639350,0.001,108550.0,108540.0,2.1454805]
[1756560640551,0.001,108550.0,108540.0,2.2376043]
[1756560640754,0.001,108550.0,108540.0,1.8768043]
[1756560640949,0.001,108550.0,108540.0,2.5984043]
[1756560641552,0.001,108550.0,108540.0,2.8484043]
[1756560642257,0.001,108550.0,108540.0,2.92273627]
[1756560643358,0.08558368,108570.0,108550.0,0.9376005]
[1756560643557,0.08558368,108570.0,108560.0,2.5060005]
[1756560643759,0.03594,108570.0,108560.0,2.5060005]
[1756560644159,0.087,108570.0,108560.0,2.5060005]
[1756560644360,0.03594,108570.0,108560.0,2.5060005]
[1756560644560,2.19647161,108600.0,108560.0,2.193467]
[1756560644761,2.33520511,108600.0,108590.0,0.3125335]
[1756560644965,2.33521337,108600.0,108590.0,0.3125335]
[1756560645848,2.61310176,108600.0,108590.0,0.3125335]
[1756560646264,2.69601337,108600.0,108590.0,0.3125335]
[1756560647350,2.74495337,108600.0,108580.0,0.6733335]
[1756560647552,2.74495337,108600.0,108580.0,0.7097835]
[1756560647553,0.087,108590.0,108580.0,0.7097835]
[1756560647753,0.087,108590.0,108580.0,0.43202]
[1756560648060,0.087,108590.0,108580.0,0.39725]
[1756560648262,0.13219663,108590.0,108580.0,0.39725]
[1756560648760,0.27375876,108590.0,108580.0,1.071967]
[1756560648951,2.15553713,108600.0,108580.0,1.071967]
[1756560649152,0.03594,108590.0,108580.0,0.7594335]
[1756560649349,0.3484735,108590.0,108580.0,1.071967]
[1756560649554,0.39674,108590.0,108570.0,0.89629]
[1756560649863,0.39674,108590.0,108580.0,0.3125335]
[1756560650056,0.7092735,108590.0,108580.0,0.3125335]
[1756560650252,0.7092735,108590.0,108580.0,0.3489835]
[1756560650457,0.03594,108590.0,108580.0,0.3489835]
[1756560650657,0.03594,108590.0,108580.0,0.3986335]
[1756560650853,0.3746835,108590.0,108580.0,0.39725]
[1756560651053,0.3746835,108590.0,108580.0,0.3986335]
[1756560651254,0.41908045,108590.0,108580.0,0.45149]
[1756560651459,0.22864881,108590.0,108580.0,0.45149]
[1756560651659,0.31190464,108590.0,108580.0,0.45149]
[1756560652161,3.13117016,108600.0,108580.0,0.76339464]
[1756560652363,2.91926552,108600.0,108580.0,0.76339464]
[1756560652559,3.32902542,108600.0,108580.0,0.76339464]
[1756560652961,3.01712078,108600.0,108580.0,0.76339464]
[1756560653157,3.32902542,108600.0,108590.0,0.03645]
[1756560653359,1.40529526,108600.0,108590.0,0.03645]
[1756560653659,1.76247918,108600.0,108580.0,0.76339464]
[1756560653867,1.76875918,108600.0,108580.0,0.76339464]
[1756560654258,0.91583918,108600.0,108580.0,0.76339464]
[1756560654659,0.06608083,108590.0,108580.0,0.76339464]
[1756560655964,0.06608083,108590.0,108580.0,0.45149]
[1756560656164,0.06608083,108590.0,108580.0,0.76339464]
[1756560659766,0.06608083,108590.0,108580.0,0.45149]
[1756560659963,0.06608083,108590.0,108580.0,0.76339464]
[1756560660269,0.06608083,108590.0,108580.0,0.45149]
[1756560660569,0.06608083,108590.0,108580.0,0.76339464]
[1756560663968,0.06608083,108590.0,108580.0,0.45149]
[1756560664176,0.06608083,108590.0,108580.0,0.76339464]
[1756560666675,0.06608083,108590.0,108580.0,0.45149]
[1756560666877,0.06608083,108590.0,108580.0,0.76339464]
[1756560667274,0.06608083,108590.0,108580.0,1.01339464]
[1756560668369,0.98815089,108600.0,108590.0,0.05717]
[1756560668570,0.98815089,108600.0,108590.0,0.76971464]
[1756560668867,0.98815089,108600.0,108590.0,0.45781]
[1756560669076,1.21714392,108600.0,108590.0,0.40891464]
[1756560669266,1.21714392,108600.0,108590.0,0.76971464]
[1756560669867,0.04527928,108600.0,108590.0,0.76971464]
[1756560670071,0.86008,108600.0,108590.0,0.76971464]
[1756560670779,0.18865427,108610.0,108600.0,0.09701]
[1756560670974,1.14973427,108610.0,108600.0,0.76971464]
[1756560671181,1.15050001,108610.0,108600.0,0.76971464]
[1756560671383,1.3931265,108610.0,108600.0,0.76958782]
[1756560671876,0.5278065,108610.0,108600.0,0.76958782]
[1756560672080,1.08114868,108610.0,108600.0,0.76958782]
[1756560672379,0.21602868,108610.0,108600.0,0.45781]
[1756560672581,1.3935265,108610.0,108600.0,0.76958782]
[1756560672773,1.08174868,108610.0,108600.0,0.76958782]
[1756560673074,1.47638988,108610.0,108600.0,0.45781]
[1756560673278,1.26461206,108610.0,108600.0,0.45781]
[1756560673679,1.26461206,108610.0,108600.0,0.09701]
[1756560674078,1.57640185,108610.0,108600.0,0.09701]
[1756560674287,1.57996185,108610.0,108600.0,0.09701]
[1756560674488,1.85789847,108610.0,108600.0,0.09701]
[1756560674779,0.31602868,108610.0,108600.0,0.40879979]
[1756560674973,1.18530868,108610.0,108600.0,0.76959979]
[1756560675186,0.31602868,108610.0,108600.0,0.76959979]
[1756560675373,1.0125901,108610.0,108600.0,0.77418979]
[1756560675773,0.1433501,108610.0,108600.0,1.10469451]
[1756560675982,0.11309853,108610.0,108600.0,1.35469451]
[1756560676281,0.04682436,108610.0,108600.0,1.35469451]
[1756560676483,0.9534626,108620.0,108610.0,0.09701]
[1756560676684,0.9534626,108620.0,108610.0,0.76959979]
[1756560676884,0.9984019,108620.0,108610.0,0.76959979]
[1756560677075,0.1278019,108620.0,108610.0,0.76959979]
[1756560677279,0.9986419,108620.0,108610.0,0.76959979]
[1756560678279,0.9986419,108620.0,108610.0,0.45781]
[1756560678480,0.9986419,108620.0,108610.0,0.76959979]
[1756560679284,0.9157793,108620.0,108610.0,0.76959979]
[1756560679682,0.9157793,108620.0,108610.0,0.45781]
[1756560680282,0.9157793,108620.0,108610.0,0.76959979]
[1756560680481,0.9157793,108620.0,108610.0,0.45781]
[1756560680789,0.0449393,108620.0,108610.0,0.45781]
[1756560680986,0.93874455,108620.0,108610.0,0.45781]
[1756560681186,0.93874455,108620.0,108610.0,0.76959979]
[1756560681693,0.93874455,108620.0,108610.0,0.45781]
[1756560681885,0.93874455,108620.0,108610.0,0.76959979]
[1756560682188,0.93874455,108620.0,108610.0,0.45781]
[1756560682390,0.93874455,108620.0,108610.0,0.76959979]
[1756560682589,0.98370232,108620.0,108610.0,0.76959979]
[1756560683498,0.91751777,108620.0,108610.0,0.76959979]
[1756560683992,0.91751777,108620.0,108610.0,0.45781]
[1756560684290,0.04495777,108620.0,108610.0,0.76959979]
[1756560684487,0.87364,108620.0,108610.0,0.76959979]
[1756560684800,0.87364,108620.0,108610.0,0.45781]
[1756560685102,1.03978277,108620.0,108610.0,0.76959979]
[1756560685300,1.08626095,108620.0,108610.0,0.76959979]
[1756560685701,1.39805074,108620.0,108610.0,0.45781]
[1756560685901,1.08626095,108620.0,108610.0,0.45781]
[1756560686101,1.39805074,108620.0,108610.0,0.45781]
[1756560687399,1.08626095,108620.0,108610.0,0.45781]
[1756560687702,1.39805074,108620.0,108610.0,0.45781]
[1756560688805,0.52441074,108620.0,108610.0,0.45781]
[1756560689002,1.39861074,108620.0,108610.0,0.45781]
[1756560689502,1.33246797,108620.0,108610.0,0.45781]
[1756560692508,1.41533057,108620.0,108610.0,0.45781]
[1756560693706,1.41533057,108620.0,108610.0,0.4624]
[1756560693911,1.41533057,108620.0,108580.0,1.25223241]
[1756560693912,0.03795,108610.0,108580.0,1.25223241]
[1756560694213,0.14664143,108590.0,108580.0,1.29126241]
[1756560694406,0.09705,108590.0,108580.0,0.7304122]
[1756560695003,0.03795,108590.0,108580.0,0.7304122]
[1756560695411,0.1040717,108590.0,108580.0,0.7304122]
[1756560695913,0.1040717,108590.0,108580.0,0.7894622]
[1756560696121,0.1631717,108590.0,108580.0,0.7894622]
[1756560696306,0.1631717,108590.0,108580.0,1.64358979]
[1756560697307,0.1040717,108590.0,108580.0,1.64358979]
[1756560697710,0.09705,108590.0,108580.0,1.58088]
[1756560697909,0.1631717,108590.0,108580.0,0.70908]
[1756560698107,0.09705,108590.0,108580.0,0.77086979]
[1756560699916,0.09705,108590.0,108580.0,0.45908]
[1756560700215,0.09705,108590.0,108580.0,0.77086979]
[1756560700412,0.16322475,108590.0,108580.0,0.77086979]
[1756560701516,0.16322475,108590.0,108580.0,0.45908]
[1756560701809,0.06617475,108590.0,108580.0,0.77086979]
[1756560702014,0.06617475,108590.0,108580.0,1.02086979]
[1756560702611,0.10412475,108600.0,108590.0,0.09828]
[1756560702808,0.10412475,108600.0,108590.0,0.41006979]
[1756560704012,0.06617475,108600.0,108590.0,0.77086979]
[1756560704418,0.06617475,108600.0,108590.0,0.45908]
[1756560704715,0.06617475,108600.0,108590.0,0.77086979]
[1756560705610,0.10412475,108600.0,108590.0,0.45908]
[1756560705815,0.06617475,108600.0,108590.0,0.77086979]
[1756560706018,0.10412475,108600.0,108590.0,0.77086979]
[1756560706217,0.16322475,108600.0,108590.0,0.77086979]
[1756560706516,0.16322475,108600.0,108590.0,0.41006979]
[1756560706716,0.47501454,108600.0,108590.0,0.09828]
[1756560707420,0.16322475,108600.0,108590.0,0.09828]
[1756560707611,0.16322475,108600.0,108590.0,0.41006979]
[1756560708209,0.16322475,108600.0,108590.0,0.09828]
[1756560708416,0.16322475,108600.0,108590.0,0.41006979]
[1756560708816,0.16322475,108600.0,108590.0,0.09828]
[1756560709016,0.16322475,108600.0,108590.0,0.41006979]
[1756560709417,0.16325542,108600.0,108590.0,0.41006979]
[1756560709919,0.16325542,108600.0,108590.0,0.09828]
[1756560710316,0.47504521,108600.0,108590.0,0.41006979]
[1756560710618,0.16325542,108600.0,108590.0,0.41006979]
[1756560712513,0.09705,108600.0,108590.0,0.41006979]
[1756560713515,0.1632606,108600.0,108590.0,0.41006979]
[1756560714520,0.1632606,108600.0,108590.0,0.09828]
[1756560714920,0.1632606,108600.0,108590.0,0.41006979]
[1756560717121,0.57505039,108600.0,108590.0,0.09828]
[1756560717515,0.93585039,108600.0,108590.0,0.09828]
[1756560718125,0.6240606,108600.0,108590.0,0.09828]
[1756560718319,0.93585039,108600.0,108590.0,0.09828]
[1756560719624,0.93585039,108600.0,108580.0,0.05905]
[1756560719924,0.83585039,108590.0,108580.0,0.09828]
[1756560720315,1.70577039,108590.0,108580.0,0.09828]
[1756560720519,1.70578331,108590.0,108580.0,0.09828]
[1756560721414,1.32777,108590.0,108580.0,0.09828]
[1756560721620,1.39456636,108590.0,108580.0,0.09828]
[1756560721815,1.70635615,108590.0,108580.0,0.09828]
[1756560723219,1.70635615,108590.0,108580.0,0.03923]
[1756560723428,1.74011979,108590.0,108570.0,0.06233]
[1756560723631,0.93488774,108580.0,108570.0,0.06564674]
[1756560724719,0.93488774,108580.0,108570.0,0.06664674]
[1756560724919,0.93488774,108580.0,108570.0,0.06864674]
[1756560725429,0.93488774,108580.0,108570.0,0.04046]
[1756560725828,0.93488774,108580.0,108570.0,0.09819]
[1756560726128,0.93488774,108580.0,108560.0,0.02027]
[1756560726431,1.37756979,108570.0,108560.0,0.05773]
[1756560726732,1.13201795,108570.0,108560.0,0.05773]
[1756560726926,1.44280774,108570.0,108560.0,0.05773]
[1756560727626,1.44280774,108570.0,108560.0,0.05973]
[1756560727922,1.44280774,108570.0,108560.0,0.06073]
[1756560728316,0.09606,108570.0,108560.0,0.06073]
[1756560728522,1.27708979,108570.0,108560.0,0.06073]
[1756560728729,1.27716979,108570.0,108560.0,0.06073]
[1756560729027,0.96538,108570.0,108560.0,0.37251979]
[1756560730531,1.03161795,108570.0,108560.0,0.06073]
[1756560731229,0.96538,108570.0,108560.0,0.06073]
[1756560731422,0.96538,108570.0,108560.0,0.09819]
[1756560732130,1.27716979,108570.0,108560.0,0.09819]
[1756560732430,1.34340774,108570.0,108560.0,0.09819]
[1756560734332,1.34340774,108570.0,108560.0,0.04046]
[1756560736032,1.34340774,108570.0,108560.0,0.09819]
[1756560736534,1.03161795,108570.0,108560.0,0.09819]
[1756560736737,1.34340774,108570.0,108560.0,0.09819]
[1756560737030,0.47408774,108570.0,108560.0,0.09819]
[1756560737235,1.34104774,108570.0,108560.0,0.09819]
[1756560738835,0.47408774,108570.0,108560.0,0.09819]
[1756560739134,1.34120774,108570.0,108560.0,0.09819]
[1756560739331,0.47408774,108570.0,108560.0,0.09819]
[1756560739531,1.34088774,108570.0,108560.0,0.09819]
[1756560740227,1.34084774,108570.0,108560.0,0.09819]
[1756560741236,1.02905795,108570.0,108560.0,0.40997979]
[1756560742236,0.16229795,108570.0,108560.0,0.40997979]
[1756560742438,0.9625,108570.0,108560.0,0.40997979]
[1756560743136,1.02873795,108570.0,108560.0,0.40997979]
[1756560743534,1.02829795,108570.0,108560.0,0.40997979]
[1756560743834,0.09606,108570.0,108560.0,0.45899]
[1756560744035,0.09606,108570.0,108560.0,0.77077979]
[1756560744235,0.16229795,108570.0,108560.0,0.77077979]
[1756560744836,0.0375,108570.0,108560.0,0.45899]
[1756560745038,0.09606,108570.0,108560.0,0.77077979]
[1756560745837,0.09606,108570.0,108560.0,0.45899]
[1756560746034,0.1456421,108570.0,108560.0,0.77077979]
[1756560746234,0.09606,108570.0,108560.0,0.45899]
[1756560746438,0.09606,108570.0,108560.0,0.77077979]
[1756560747333,0.40784979,108570.0,108560.0,0.04046]
[1756560747638,0.76864979,108570.0,108560.0,0.04046]
[1756560749332,0.45686,108570.0,108560.0,0.04046]
[1756560749537,0.76864979,108570.0,108560.0,0.09819]
[1756560750334,0.83488774,108570.0,108560.0,0.09819]
[1756560750532,0.76864979,108570.0,108560.0,0.09819]
[1756560751234,0.45686,108570.0,108560.0,0.09819]
[1756560751441,0.96358,108570.0,108560.0,0.40997979]
[1756560751632,0.09606,108570.0,108560.0,0.40997979]
[1756560751838,0.96322,108570.0,108560.0,0.40997979]
[1756560752338,0.09606,108570.0,108560.0,0.40997979]
[1756560752640,0.16229795,108570.0,108560.0,0.77077979]
[1756560752843,0.16229795,108570.0,108560.0,0.40997979]
[1756560753543,0.16229795,108570.0,108560.0,0.77077979]
[1756560753745,0.16229795,108570.0,108560.0,0.40997979]
[1756560754242,0.52309795,108570.0,108560.0,0.40997979]
[1756560754442,0.45686,108570.0,108560.0,0.40997979]
[1756560754639,0.76864979,108570.0,108560.0,0.04046]
[1756560754838,0.86864979,108570.0,108560.0,0.04046]
[1756560755045,0.86864979,108570.0,108560.0,0.003]
[1756560755046,0.94080261,108570.0,108560.0,0.003]
[1756560755236,0.71187542,108570.0,108560.0,0.003]
[1756560755437,1.02366521,108570.0,108560.0,0.003]
[1756560755639,0.95151239,108570.0,108560.0,0.003]
[1756560756241,0.97116942,108570.0,108560.0,3.231e-05]
[1756560756944,0.97116942,108570.0,108560.0,0.04024231]
[1756560758044,1.73792942,108570.0,108560.0,0.04024231]
[1756560759139,1.73792942,108570.0,108560.0,0.09670231]
[1756560759340,1.7379089,108570.0,108560.0,0.09670231]
[1756560760141,0.63409777,108570.0,108560.0,0.09670231]
[1756560760346,1.49993777,108570.0,108560.0,0.4084921]
[1756560761241,0.27329777,108570.0,108560.0,0.4084921]
[1756560761447,1.05647517,108570.0,108560.0,0.4084921]
[1756560762940,1.05647517,108570.0,108560.0,0.09670231]
[1756560763143,1.05647517,108570.0,108560.0,0.4084921]
[1756560765247,0.19043517,108570.0,108560.0,0.4084921]
[1756560765449,1.05595517,108570.0,108560.0,0.4084921]
[1756560766651,1.03631866,108570.0,108560.0,0.4084921]
[1756560766849,1.05606095,108570.0,108560.0,0.4084921]
[1756560770654,0.11580229,108570.0,108560.0,0.4084921]
[1756560770852,1.04616066,108570.0,108560.0,0.4084921]
[1756560771051,0.18200066,108570.0,108560.0,0.4084921]
[1756560771247,0.18200066,108570.0,108560.0,0.09670231]
[1756560771554,0.18200066,108570.0,108560.0,0.4084921]
[1756560772143,0.49379045,108570.0,108560.0,0.3520321]
[1756560773556,0.18200066,108570.0,108560.0,0.3520321]
[1756560773945,0.49379045,108570.0,108560.0,0.3520321]
[1756560774252,0.49379045,108570.0,108560.0,0.4084921]
[1756560774454,0.78839208,108570.0,108560.0,3.231e-05]
[1756560775148,0.78839208,108570.0,108560.0,0.04024231]
[1756560777058,0.78839208,108570.0,108560.0,3.231e-05]
[1756560777255,0.47660229,108570.0,108560.0,3.231e-05]
[1756560777458,0.78839208,108570.0,108560.0,3.231e-05]
[1756560778054,0.47660229,108570.0,108560.0,0.04024231]
[1756560778361,0.97800229,108570.0,108560.0,0.4084921]
[1756560778660,1.04421008,108570.0,108560.0,0.4084921]
[1756560779656,0.97800229,108570.0,108560.0,0.4084921]
[1756560779859,0.97948229,108570.0,108560.0,0.4084921]
[1756560780256,0.97948229,108570.0,108560.0,0.09670231]
[1756560780455,0.97948229,108570.0,108560.0,0.4084921]
[1756560780853,0.97948229,108570.0,108560.0,0.09670231]
[1756560781054,0.97948229,108570.0,108560.0,0.4084921]
[1756560781255,0.11580229,108570.0,108560.0,0.7692921]
[1756560781561,0.18201181,108570.0,108560.0,0.7692921]
[1756560781752,0.18201181,108570.0,108560.0,0.4084921]
[1756560782259,0.11580229,108570.0,108560.0,0.04024231]
[1756560782661,0.19866489,108570.0,108560.0,0.04024231]
[1756560782955,0.19866489,108570.0,108560.0,0.09903231]
[1756560784057,0.19866489,108570.0,108560.0,0.4108221]
[1756560784358,0.19866489,108570.0,108560.0,0.09903231]
[1756560784561,0.11580229,108570.0,108560.0,0.09903231]
[1756560785260,0.19866489,108570.0,108560.0,0.09903231]
[1756560785962,0.11580229,108570.0,108560.0,0.09903231]
[1756560786259,0.11580229,108570.0,108560.0,0.7716221]
[1756560786461,0.11580229,108570.0,108560.0,0.4108221]
[1756560786660,0.11580229,108570.0,108560.0,0.09903231]
[1756560786860,0.11580229,108570.0,108560.0,0.4108221]
[1756560789159,0.11580229,108570.0,108560.0,0.09903231]
[1756560789457,0.11580229,108570.0,108560.0,0.4108221]